[Event "African Games-chT 2019"]
[Site "Casablanca"]
[Date "2019.08.24"]
[Round "4.22"]
[White "Silva, David"]
[Black "Eichab, Charles"]
[Result "1/2-1/2"]
[ECO "C05"]
[WhiteElo "2239"]
[BlackElo "2016"]
[Annotator "NA"]
[PlyCount "91"]
[EventDate "2019.08.24"]
[EventType "team-tourn"]
[EventCountry "MAR"]
[SourceTitle "playchess.com"]
[Source "ChessBase"]
[SourceQuality "1"]
[WhiteTeam "Angola"]
[BlackTeam "Namibia"]
[WhiteTeamCountry "ANG"]
[BlackTeamCountry "NAM"]
[TimeControl "900+10"]

1. e4 {[%emt 0:00:00]} e6 {[%emt 0:00:00]} 2. d4 {[%emt 0:00:00]} d5 {[%emt 0:00:00]} 3. Nd2 {[%emt 0:00:00]} Nf6 {[%emt 0:00:00]} 4. e5 {[%emt 0:00:02]} Nfd7 5. f4 {[%emt 0:00:02]} c5 {[%emt 0:00:06]} 6. c3 {[%emt 0:00:01]} Nc6 {[%emt 0:00:06]} 7. Ndf3 {[%emt 0:00:02]} Qb6 {[%emt 0:00:28]} 8. a3 {[%emt 0:00:04]} a5 {[%emt 0:00:04]} 9. h4 {[%emt 0:00:02]} a4 {[%emt 0:01:45]} 10. h5 {[%emt 0:00:40]} Qb3 {[%emt 0:00:45]} 11. Qxb3 {[%emt 0:00:34]} axb3 {[%emt 0:00:02]} 12. dxc5 {[%emt 0:00:14]} Bxc5 {[%emt 0:00:45]} 13. Bd3 {[%emt 0:00:53]} f6 {[%emt 0:00:38]} 14. exf6 {[%emt 0:00:06]} Nxf6 {[%emt 0:00:01]} 15. Ne2 {[%emt 0:00:03]} Bd7 {[%emt 0:01:15]} 16. Bd2 {[%emt 0:01:58]} Ng4 {[%emt 0:01:44]} 17. Ned4 {[%emt 0:00:40]} e5 {[%emt 0:01:27]} 18. fxe5 {[%emt 0:01:09]} Ncxe5 {[%emt 0:00:22]} 19. Be2 {[%emt 0:00:08]} Nc4 {[%emt 0:02:10]} 20. Nxb3 {[%emt 0:06:28]} Bf2+ {[%emt 0:00:10]} 21. Kf1 {[%emt 0:00:02]} O-O {[%emt 0:00:29]} 22. Bxc4 {[%emt 0:00:32]} dxc4 {[%emt 0:01:20]} 23. Nbd4 Rae8 {[%emt 0:00:39]} 24. Rc1 {[%emt 0:03:40]} Re4 {[%emt 0:00:10]} 25. Bg5 {[%emt 0:00:45]} Bxd4 {[%emt 0:03:26]} 26. cxd4 {[%emt 0:00:10]} Rxd4 {[%emt 0:00:25]} 27. h6 {[%emt 0:00:08]} gxh6 28. Bxh6 Nxh6 {[%emt 0:00:42]} 29. Rxh6 {[%emt 0:00:11]} Bc6 {[%emt 0:00:32]} 30. Rc3 {[%emt 0:00:08]} Rd2 {[%emt 0:00:07]} 31. Kg1 {[%emt 0:00:09]} Bxf3 {[%emt 0:00:14]} 32. gxf3 {[%emt 0:00:09]} Rxb2 {[%emt 0:00:02]} 33. Rxc4 {[%emt 0:00:08]} Rxf3 {[%emt 0:00:07]} 34. Rc8+ {[%emt 0:00:03]} Kg7 {[%emt 0:00:04]} 35. Rd6 {[%emt 0:00:07]} Rf7 {[%emt 0:00:05]} 36. a4 {[%emt 0:00:05]} Re7 {[%emt 0:00:07]} 37. Kf1 {[%emt 0:00:03]} Ra2 {[%emt 0:00:04]} 38. Rc4 {[%emt 0:00:02]} Rf7+ {[%emt 0:00:02]} 39. Kg1 {[%emt 0:00:01]} Re7 {[%emt 0:00:08]} 40. Rg4+ {[%emt 0:00:01]} Kf7 {[%emt 0:00:18]} 41. Rd1 {[%emt 0:00:01]} Ree2 {[%emt 0:00:15]} 42. Rg3 {[%emt 0:00:25]} Rxa4 {[%emt 0:00:17]} 43. Rf3+ {[%emt 0:00:03]} Ke7 {[%emt 0:00:06]} 44. Rh3 {[%emt 0:00:02]} Raa2 {[%emt 0:00:21]} 45. Rxh7+ {[%emt 0:00:02]} Ke6 {[%emt 0:00:02]} 46. Rxb7 1/2-1/2

[Event "African Games-chT 2019"]
[Site "Casablanca"]
[Date "2019.08.24"]
[Round "4.23"]
[White "Tjaronda, Nicola"]
[Black "Caxita, Esperanca"]
[Result "0-1"]
[ECO "A15"]
[WhiteElo "1545"]
[BlackElo "1803"]
[Annotator "NA"]
[PlyCount "80"]
[EventDate "2019.08.24"]
[EventType "team-tourn"]
[EventCountry "MAR"]
[SourceTitle "playchess.com"]
[Source "ChessBase"]
[SourceQuality "1"]
[WhiteTeam "Namibia"]
[BlackTeam "Angola"]
[WhiteTeamCountry "NAM"]
[BlackTeamCountry "ANG"]
[TimeControl "900+10"]

1. c4 {[%emt 0:00:00]} Nf6 {[%emt 0:00:00]} 2. g3 {[%emt 0:00:00]} d5 {[%emt 0:00:02]} 3. Bg2 {[%emt 0:00:06]} c6 {[%emt 0:00:16]} 4. cxd5 {[%emt 0:00:16]} cxd5 {[%emt 0:00:01]} 5. d4 {[%emt 0:00:22]} Nc6 {[%emt 0:00:02]} 6. Nc3 {[%emt 0:00:09]} e6 {[%emt 0:00:20]} 7. Bg5 {[%emt 0:00:13]} Be7 {[%emt 0:00:28]} 8. Nf3 {[%emt 0:00:04]} a6 {[%emt 0:00:05]} 9. O-O {[%emt 0:00:53]} O-O {[%emt 0:00:06]} 10. a3 {[%emt 0:00:11]} h6 {[%emt 0:00:26]} 11. Bf4 {[%emt 0:00:14]} Re8 {[%emt 0:01:08]} 12. Ne5 {[%emt 0:00:33]} Nxe5 {[%emt 0:01:07]} 13. Bxe5 {[%emt 0:00:15]} Nd7 {[%emt 0:00:13]} 14. Bf4 {[%emt 0:00:48]} Bf6 {[%emt 0:00:22]} 15. Bd6 {[%emt 0:01:05]} Qb6 {[%emt 0:00:27]} 16. Be5 {[%emt 0:02:07]} Nxe5 {[%emt 0:00:21]} 17. dxe5 {[%emt 0:00:11]} Bxe5 {[%emt 0:00:30]} 18. Qc2 {[%emt 0:00:37]} Bd7 {[%emt 0:00:35]} 19. Na4 {[%emt 0:01:54]} Qc6 {[%emt 0:03:20]} 20. Qxc6 {[%emt 0:00:46]} Bxc6 {[%emt 0:00:02]} 21. Nc3 {[%emt 0:01:22]} Rac8 {[%emt 0:01:02]} 22. Rac1 {[%emt 0:00:10]} Bxc3 {[%emt 0:00:12]} 23. Rxc3 {[%emt 0:00:12]} Bb5 {[%emt 0:00:08]} 24. Rxc8 {[%emt 0:02:02]} Rxc8 {[%emt 0:00:01]} 25. Bf3 {[%emt 0:00:02]} Rc2 {[%emt 0:00:05]} 26. Rb1 {[%emt 0:00:49]} Bxe2 {[%emt 0:00:15]} 27. Bxe2 {[%emt 0:00:02]} Rxe2 {[%emt 0:00:02]} 28. Kf1 {[%emt 0:00:00]} Rc2 {[%emt 0:00:02]} 29. b4 {[%emt 0:00:32]} b5 {[%emt 0:01:07]} 30. Rb3 {[%emt 0:00:12]} Kf8 {[%emt 0:00:06]} 31. Kg2 {[%emt 0:00:21]} d4 {[%emt 0:00:31]} 32. Kf3 {[%emt 0:01:04]} f5 {[%emt 0:00:34]} 33. Rd3 {[%emt 0:00:36]} e5 {[%emt 0:00:04]} 34. Kg2 {[%emt 0:00:16]} Rc3 {[%emt 0:00:24]} 35. Rf3 {[%emt 0:00:38]} Rxf3 {[%emt 0:00:30]} 36. Kxf3 {[%emt 0:00:10]} Ke7 {[%emt 0:00:02]} 37. Ke2 {[%emt 0:00:58]} Ke6 {[%emt 0:00:08]} 38. f3 Kd5 {[%emt 0:00:03]} 39. Kd3 {[%emt 0:00:51]} e4+ {[%emt 0:00:02]} 40. fxe4+ {[%emt 0:00:01]} fxe4+ {[%emt 0:00:02]} 0-1

[Event "African Games-chT 2019"]
[Site "Casablanca"]
[Date "2019.08.24"]
[Round "4.24"]
[White "Pires, Luzia"]
[Black "Mentile, Lishen"]
[Result "1-0"]
[ECO "B01"]
[WhiteElo "1924"]
[BlackElo "1513"]
[Annotator "NA"]
[PlyCount "151"]
[EventDate "2019.08.24"]
[EventType "team-tourn"]
[EventCountry "MAR"]
[SourceTitle "playchess.com"]
[Source "ChessBase"]
[SourceQuality "1"]
[WhiteTeam "Angola"]
[BlackTeam "Namibia"]
[WhiteTeamCountry "ANG"]
[BlackTeamCountry "NAM"]
[TimeControl "900+10"]

1. e4 {[%emt 0:00:00]} d5 {[%emt 0:00:00]} 2. exd5 {[%emt 0:00:00]} Qxd5 {[%emt 0:00:00]} 3. Nc3 {[%emt 0:00:00]} Qd8 {[%emt 0:00:00]} 4. h3 {[%emt 0:00:03]} Nf6 {[%emt 0:00:02]} 5. Nf3 {[%emt 0:00:01]} c6 {[%emt 0:00:07]} 6. a3 {[%emt 0:00:02]} Bf5 {[%emt 0:00:02]} 7. Bc4 {[%emt 0:00:03]} e6 {[%emt 0:00:03]} 8. d4 {[%emt 0:00:17]} h6 {[%emt 0:00:07]} 9. Ne2 {[%emt 0:00:05]} Be7 {[%emt 0:00:15]} 10. c3 {[%emt 0:00:03]} Nbd7 {[%emt 0:00:12]} 11. O-O {[%emt 0:00:05]} O-O {[%emt 0:00:04]} 12. Bf4 {[%emt 0:00:24]} Nb6 {[%emt 0:00:31]} 13. Ba2 {[%emt 0:00:04]} Nbd5 {[%emt 0:01:53]} 14. Bh2 {[%emt 0:00:13]} Bd6 {[%emt 0:00:45]} 15. Ne5 {[%emt 0:00:34]} Nd7 {[%emt 0:00:31]} 16. Nc4 {[%emt 0:03:01]} Bxh2+ {[%emt 0:00:24]} 17. Kxh2 {[%emt 0:00:02]} Qc7+ {[%emt 0:00:30]} 18. Kg1 {[%emt 0:00:07]} N5b6 {[%emt 0:02:15]} 19. Ne3 {[%emt 0:00:21]} Bg6 {[%emt 0:00:11]} 20. Ng3 {[%emt 0:00:40]} Nf6 {[%emt 0:00:02]} 21. Qf3 {[%emt 0:00:27]} Rad8 {[%emt 0:00:26]} 22. Rfe1 {[%emt 0:00:27]} Nbd5 {[%emt 0:00:54]} 23. Nc4 {[%emt 0:00:36]} Qf4 {[%emt 0:01:21]} 24. Qe2 {[%emt 0:01:39]} Nd7 {[%emt 0:01:06]} 25. Bb1 {[%emt 0:00:34]} b6 {[%emt 0:00:34]} 26. Bxg6 {[%emt 0:00:52]} fxg6 {[%emt 0:00:02]} 27. Qxe6+ {[%emt 0:00:12]} Kh7 {[%emt 0:00:33]} 28. Rf1 {[%emt 0:00:16]} Rf6 {[%emt 0:00:46]} 29. Qe4 {[%emt 0:00:20]} Qxe4 {[%emt 0:01:15]} 30. Nxe4 {[%emt 0:00:03]} Re6 {[%emt 0:00:28]} 31. f3 {[%emt 0:00:10]} Rf8 {[%emt 0:00:36]} 32. Rfe1 {[%emt 0:00:11]} Nf4 {[%emt 0:00:37]} 33. Kh2 {[%emt 0:00:37]} Ree8 {[%emt 0:00:28]} 34. Ncd6 {[%emt 0:00:18]} Rd8 {[%emt 0:00:31]} 35. Rad1 {[%emt 0:00:26]} Nf6 {[%emt 0:00:27]} 36. a4 {[%emt 0:00:26]} Nxe4 {[%emt 0:00:46]} 37. Nxe4 {[%emt 0:00:03]} Rfe8 {[%emt 0:00:16]} 38. Re3 {[%emt 0:00:21]} Nd5 {[%emt 0:00:04]} 39. Re2 {[%emt 0:00:12]} Nf4 {[%emt 0:00:01]} 40. Ree1 {[%emt 0:00:09]} Kg8 {[%emt 0:00:07]} 41. Ng3 {[%emt 0:00:41]} Rxe1 {[%emt 0:00:25]} 42. Rxe1 {[%emt 0:00:01]} Nd3 {[%emt 0:00:23]} 43. Re2 {[%emt 0:00:26]} Kf7 {[%emt 0:00:01]} 44. Ne4 {[%emt 0:00:16]} Nf4 {[%emt 0:00:07]} 45. Re1 {[%emt 0:00:11]} Nd3 {[%emt 0:00:05]} 46. Re2 {[%emt 0:00:03]} Nf4 {[%emt 0:00:01]} 47. Rd2 {[%emt 0:00:02]} Ke6 {[%emt 0:00:25]} 48. b3 {[%emt 0:00:24]} Nd5 {[%emt 0:00:50]} 49. Re2 {[%emt 0:00:08]} Kf5 {[%emt 0:00:18]} 50. Kg3 {[%emt 0:00:16]} Nf4 {[%emt 0:00:26]} 51. Rd2 {[%emt 0:00:21]} Nd5 {[%emt 0:00:03]} 52. Kf2 {[%emt 0:00:15]} Nf6 {[%emt 0:00:53]} 53. Ng3+ {[%emt 0:00:26]} Ke6 {[%emt 0:00:07]} 54. Re2+ {[%emt 0:00:05]} Kd6 {[%emt 0:00:19]} 55. Ne4+ {[%emt 0:00:34]} Kd5 {[%emt 0:00:20]} 56. Nxf6+ {[%emt 0:00:35]} gxf6 {[%emt 0:00:06]} 57. Re7 {[%emt 0:00:01]} a6 {[%emt 0:00:14]} 58. Rg7 {[%emt 0:00:06]} g5 {[%emt 0:00:04]} 59. Rh7 {[%emt 0:00:02]} Rd6 {[%emt 0:00:09]} 60. Rxh6 {[%emt 0:00:02]} Re6 {[%emt 0:00:01]} 61. Rh7 {[%emt 0:00:08]} c5 {[%emt 0:00:17]} 62. dxc5 {[%emt 0:00:22]} Kxc5 {[%emt 0:00:07]} 63. Rc7+ {[%emt 0:00:06]} Kd6 {[%emt 0:00:18]} 64. Ra7 {[%emt 0:00:08]} a5 {[%emt 0:00:06]} 65. g3 {[%emt 0:00:22]} Kc6 {[%emt 0:00:02]} 66. Rf7 {[%emt 0:00:11]} Kd6 {[%emt 0:00:16]} 67. h4 {[%emt 0:00:02]} gxh4 {[%emt 0:00:17]} 68. gxh4 {[%emt 0:00:01]} Ke5 {[%emt 0:00:01]} 69. h5 {[%emt 0:00:13]} Kf5 {[%emt 0:00:01]} 70. h6 {[%emt 0:00:03]} Kg6 {[%emt 0:00:16]} 71. h7 {[%emt 0:00:03]} Re8 {[%emt 0:00:06]} 72. Rb7 {[%emt 0:00:08]} Rh8 {[%emt 0:00:21]} 73. b4 {[%emt 0:00:07]} axb4 {[%emt 0:00:08]} 74. cxb4 {[%emt 0:00:00]} Rxh7 75. Rxh7 {[%emt 0:00:03]} Kxh7 {[%emt 0:00:15]} 76. a5 {[%emt 0:00:03]} 1-0

[Event "African Games-chT 2019"]
[Site "Casablanca"]
[Date "2019.08.24"]
[Round "4.25"]
[White "Rita, Jeorciley"]
[Black "Mwale, Joseph"]
[Result "0-1"]
[ECO "A46"]
[WhiteElo "1920"]
[BlackElo "2231"]
[Annotator "NA"]
[PlyCount "104"]
[EventDate "2019.08.24"]
[EventType "team-tourn"]
[EventCountry "MAR"]
[SourceTitle "playchess.com"]
[Source "ChessBase"]
[SourceQuality "1"]
[WhiteTeam "STP"]
[BlackTeam "MAW"]
[TimeControl "900+10"]

1. d4 {[%emt 0:00:00]} Nf6 {[%emt 0:03:18]} 2. Nf3 {[%emt 0:00:00]} e6 {[%emt 0:00:01]} 3. Bg5 {[%emt 0:00:00]} d5 {[%emt 0:00:01]} 4. e3 {[%emt 0:00:00]} Be7 {[%emt 0:00:02]} 5. Bd3 {[%emt 0:00:04]} b6 {[%emt 0:00:01]} 6. c3 {[%emt 0:00:02]} O-O {[%emt 0:00:03]} 7. Nbd2 {[%emt 0:00:03]} h6 {[%emt 0:00:02]} 8. Bh4 {[%emt 0:00:02]} Nbd7 {[%emt 0:00:02]} 9. h3 {[%emt 0:00:27]} c5 {[%emt 0:00:03]} 10. g4 {[%emt 0:00:07]} Bb7 {[%emt 0:00:13]} 11. Qc2 {[%emt 0:00:48]} c4 {[%emt 0:00:32]} 12. Be2 {[%emt 0:00:07]} Ne4 {[%emt 0:00:33]} 13. Bxe7 {[%emt 0:00:56]} Qxe7 {[%emt 0:00:02]} 14. Nxe4 {[%emt 0:00:45]} dxe4 {[%emt 0:00:04]} 15. Nd2 {[%emt 0:00:03]} b5 {[%emt 0:00:01]} 16. O-O-O {[%emt 0:01:13]} e5 {[%emt 0:00:14]} 17. Rhg1 {[%emt 0:00:30]} exd4 {[%emt 0:00:02]} 18. exd4 {[%emt 0:00:13]} e3 {[%emt 0:00:07]} 19. fxe3 {[%emt 0:01:39]} Qxe3 {[%emt 0:00:02]} 20. Rde1 {[%emt 0:00:32]} Rae8 {[%emt 0:00:03]} 21. Kd1 {[%emt 0:01:29]} Qf2 {[%emt 0:00:49]} 22. Rgf1 {[%emt 0:01:07]} Qg2 {[%emt 0:00:05]} 23. h4 {[%emt 0:01:40]} Nf6 {[%emt 0:00:17]} 24. Qf5 {[%emt 0:00:12]} Nd5 {[%emt 0:00:06]} 25. Rf2 {[%emt 0:00:30]} Ne3+ {[%emt 0:00:09]} 26. Kc1 {[%emt 0:00:02]} Nxf5 {[%emt 0:00:04]} 27. Rxg2 {[%emt 0:00:02]} Bxg2 {[%emt 0:00:07]} 28. gxf5 {[%emt 0:00:03]} Re3 {[%emt 0:00:07]} 29. Kd1 {[%emt 0:00:43]} Rfe8 {[%emt 0:00:02]} 30. b3 {[%emt 0:00:18]} cxb3 {[%emt 0:00:07]} 31. axb3 {[%emt 0:00:09]} Bh3 {[%emt 0:00:04]} 32. Rh1 {[%emt 0:00:19]} Rxc3 {[%emt 0:00:13]} 33. Rh2 {[%emt 0:01:25]} Bxf5 {[%emt 0:00:04]} 34. Bxb5 {[%emt 0:00:06]} Bg4+ {[%emt 0:00:03]} 35. Be2 {[%emt 0:00:02]} Rxe2 {[%emt 0:00:02]} 36. Rxe2 {[%emt 0:02:17]} Re3 {[%emt 0:00:03]} 37. Kc2 {[%emt 0:00:15]} Rxe2 {[%emt 0:00:04]} 38. Kc3 {[%emt 0:00:01]} Be6 {[%emt 0:00:04]} 39. Nc4 {[%emt 0:00:32]} Rh2 {[%emt 0:00:09]} 40. Kb4 {[%emt 0:00:07]} Rxh4 {[%emt 0:00:03]} 41. Kc5 {[%emt 0:00:01]} Rh5+ {[%emt 0:00:08]} 42. Kb4 {[%emt 0:00:18]} Rg5 {[%emt 0:00:04]} 43. Ne5 {[%emt 0:00:33]} h5 {[%emt 0:00:01]} 44. Nf3 {[%emt 0:01:37]} Rg3 {[%emt 0:00:06]} 45. Nd2 {[%emt 0:00:07]} h4 {[%emt 0:00:02]} 46. Kc5 {[%emt 0:00:05]} h3 {[%emt 0:00:01]} 47. Nf1 {[%emt 0:00:07]} Rf3 {[%emt 0:00:05]} 48. Nh2 {[%emt 0:00:14]} Rf2 {[%emt 0:00:01]} 49. d5 {[%emt 0:00:10]} Bc8 {[%emt 0:00:04]} 50. Kc6 {[%emt 0:00:07]} Rxh2 {[%emt 0:00:01]} 51. d6 {[%emt 0:00:03]} Rc2+ {[%emt 0:00:01]} 52. Kd5 {[%emt 0:00:08]} h2 {[%emt 0:00:02]} 0-1

[Event "African Games-chT 2019"]
[Site "Casablanca"]
[Date "2019.08.24"]
[Round "4.26"]
[White "Mphungu, Gerrard"]
[Black "Espirito Santo, Waldyr"]
[Result "1-0"]
[ECO "E62"]
[WhiteElo "2107"]
[BlackElo "1923"]
[Annotator "NA"]
[PlyCount "111"]
[EventDate "2019.08.24"]
[EventType "team-tourn"]
[EventCountry "MAR"]
[SourceTitle "playchess.com"]
[Source "ChessBase"]
[SourceQuality "1"]
[WhiteTeam "MAW"]
[BlackTeam "STP"]
[TimeControl "900+10"]

1. d4 {[%emt 0:00:10]} Nf6 {[%emt 0:00:00]} 2. c4 {[%emt 0:00:01]} g6 {[%emt 0:00:00]} 3. Nf3 {[%emt 0:00:23]} Bg7 {[%emt 0:00:08]} 4. g3 {[%emt 0:00:05]} O-O {[%emt 0:00:17]} 5. Bg2 {[%emt 0:00:01]} d6 {[%emt 0:00:10]} 6. Nc3 {[%emt 0:00:21]} Nc6 {[%emt 0:00:08]} 7. O-O {[%emt 0:01:00]} e5 {[%emt 0:00:31]} 8. d5 {[%emt 0:00:35]} Ne7 {[%emt 0:00:29]} 9. e4 {[%emt 0:00:07]} Nd7 {[%emt 0:00:21]} 10. Be3 {[%emt 0:02:50]} f5 {[%emt 0:01:03]} 11. Ng5 {[%emt 0:03:15]} Nf6 {[%emt 0:00:08]} 12. f3 {[%emt 0:01:35]} c6 {[%emt 0:01:21]} 13. Qd2 {[%emt 0:00:16]} h6 {[%emt 0:00:20]} 14. Ne6 {[%emt 0:00:49]} Bxe6 {[%emt 0:00:04]} 15. dxe6 {[%emt 0:00:01]} Kh7 {[%emt 0:00:13]} 16. f4 {[%emt 0:00:30]} Ng4 {[%emt 0:00:13]} 17. Kh1 {[%emt 0:00:39]} Nxe3 {[%emt 0:00:09]} 18. Qxe3 {[%emt 0:00:01]} Qc8 {[%emt 0:01:03]} 19. fxe5 {[%emt 0:01:01]} Bxe5 {[%emt 0:01:29]} 20. c5 {[%emt 0:00:32]} Qxe6 {[%emt 0:00:16]} 21. cxd6 {[%emt 0:00:48]} Bxd6 {[%emt 0:00:51]} 22. Rad1 {[%emt 0:00:43]} Bb4 {[%emt 0:01:59]} 23. Qd3 {[%emt 0:00:58]} Rad8 {[%emt 0:01:48]} 24. Qe2 {[%emt 0:01:25]} a6 {[%emt 0:01:11]} 25. exf5 {[%emt 0:00:32]} Qxe2 {[%emt 0:00:16]} 26. fxg6+ {[%emt 0:00:02]} Kxg6 {[%emt 0:00:30]} 27. Nxe2 {[%emt 0:00:01]} Rxf1+ {[%emt 0:00:26]} 28. Rxf1 Rd2 {[%emt 0:00:41]} 29. Nf4+ {[%emt 0:00:21]} Kg7 {[%emt 0:01:29]} 30. Ne6+ {[%emt 0:00:02]} Kh8 {[%emt 0:00:51]} 31. a3 {[%emt 0:00:03]} Bd6 {[%emt 0:00:23]} 32. Nd8 {[%emt 0:00:28]} Ng6 {[%emt 0:01:01]} 33. Rf6 {[%emt 0:00:32]} Rd1+ {[%emt 0:00:17]} 34. Bf1 {[%emt 0:00:04]} Ne5 {[%emt 0:00:08]} 35. Nf7+ {[%emt 0:00:13]} Nxf7 {[%emt 0:00:06]} 36. Rxf7 {[%emt 0:00:02]} Kg8 {[%emt 0:00:05]} 37. Rf3 {[%emt 0:00:27]} Kg7 {[%emt 0:00:07]} 38. Kg2 {[%emt 0:00:05]} Bc5 {[%emt 0:00:09]} 39. Rd3 {[%emt 0:00:11]} Rxd3 {[%emt 0:00:21]} 40. Bxd3 {[%emt 0:00:01]} a5 {[%emt 0:00:09]} 41. a4 {[%emt 0:00:03]} Kf6 {[%emt 0:00:08]} 42. Kf3 {[%emt 0:00:10]} Bd4 {[%emt 0:00:07]} 43. b3 {[%emt 0:00:01]} c5 {[%emt 0:00:05]} 44. Ke4 {[%emt 0:00:03]} b6 {[%emt 0:00:15]} 45. g4 {[%emt 0:00:09]} Kg5 {[%emt 0:00:08]} 46. Be2 {[%emt 0:00:32]} Bg1 {[%emt 0:00:11]} 47. Kd5 {[%emt 0:00:11]} Bxh2 {[%emt 0:00:15]} 48. Kc6 {[%emt 0:00:01]} Bg1 {[%emt 0:00:01]} 49. Bc4 {[%emt 0:00:01]} Kxg4 {[%emt 0:00:12]} 50. Kxb6 {[%emt 0:00:02]} h5 {[%emt 0:00:10]} 51. Kxa5 {[%emt 0:00:01]} h4 {[%emt 0:00:07]} 52. Kb5 {[%emt 0:00:04]} Kf4 {[%emt 0:00:20]} 53. a5 {[%emt 0:00:01]} Ke5 {[%emt 0:00:09]} 54. a6 {[%emt 0:00:06]} h3 {[%emt 0:00:04]} 55. a7 {[%emt 0:00:04]} h2 {[%emt 0:00:22]} 56. a8=Q {[%emt 0:00:02]} 1-0

[Event "African Games-chT 2019"]
[Site "Casablanca"]
[Date "2019.08.24"]
[Round "4.29"]
[White "Marie, Patrick"]
[Black "Asante Debesai Zerabruk"]
[Result "1/2-1/2"]
[ECO "B13"]
[WhiteElo "1921"]
[BlackElo "1712"]
[Annotator "NA"]
[PlyCount "186"]
[EventDate "2019.08.24"]
[EventType "team-tourn"]
[EventCountry "MAR"]
[SourceTitle "playchess.com"]
[Source "ChessBase"]
[SourceQuality "1"]
[WhiteTeam "Mauritius"]
[BlackTeam "Eritrea"]
[WhiteTeamCountry "MRI"]
[BlackTeamCountry "ERI"]
[TimeControl "900+10"]

1. e4 {[%emt 0:00:00]} c6 {[%emt 0:00:00]} 2. d4 {[%emt 0:00:00]} d5 {[%emt 0:00:00]} 3. exd5 {[%emt 0:00:04]} cxd5 {[%emt 0:00:00]} 4. c4 {[%emt 0:00:03]} Nf6 {[%emt 0:00:00]} 5. Nc3 {[%emt 0:00:24]} Nc6 {[%emt 0:00:00]} 6. Nf3 {[%emt 0:00:38]} Bg4 {[%emt 0:00:09]} 7. Be2 {[%emt 0:01:00]} dxc4 {[%emt 0:01:02]} 8. d5 {[%emt 0:00:11]} Bxf3 {[%emt 0:00:07]} 9. Bxf3 {[%emt 0:02:05]} Ne5 {[%emt 0:00:10]} 10. Be2 {[%emt 0:00:40]} e6 {[%emt 0:02:26]} 11. Qa4+ Qd7 {[%emt 0:00:16]} 12. dxe6 {[%emt 0:00:29]} Qxa4 {[%emt 0:00:26]} 13. exf7+ {[%emt 0:00:03]} Kxf7 {[%emt 0:00:12]} 14. Nxa4 {[%emt 0:00:05]} b5 {[%emt 0:00:43]} 15. Nc3 {[%emt 0:02:07]} Bb4 {[%emt 0:00:08]} 16. O-O {[%emt 0:00:24]} Bxc3 {[%emt 0:02:11]} 17. bxc3 {[%emt 0:00:03]} Rad8 {[%emt 0:00:07]} 18. Be3 Rd7 {[%emt 0:01:41]} 19. Bd4 {[%emt 0:01:32]} Nc6 {[%emt 0:00:25]} 20. Be3 {[%emt 0:01:23]} Re8 {[%emt 0:00:56]} 21. a4 {[%emt 0:00:32]} a6 {[%emt 0:00:27]} 22. axb5 {[%emt 0:00:02]} axb5 {[%emt 0:00:02]} 23. Bf3 {[%emt 0:00:37]} Ne5 {[%emt 0:00:14]} 24. Ba8 {[%emt 0:02:05]} Nd5 {[%emt 0:01:39]} 25. Bd4 {[%emt 0:00:11]} Nc7 {[%emt 0:01:35]} 26. f4 {[%emt 0:01:38]} Rxa8 {[%emt 0:00:56]} 27. fxe5+ {[%emt 0:00:03]} Ke6 {[%emt 0:00:07]} 28. Rxa8 {[%emt 0:01:45]} Nxa8 {[%emt 0:00:02]} 29. Rb1 {[%emt 0:00:15]} Rb7 {[%emt 0:00:53]} 30. Kf2 {[%emt 0:00:06]} Nc7 {[%emt 0:00:01]} 31. Kf3 {[%emt 0:00:10]} h6 {[%emt 0:00:30]} 32. Ke4 {[%emt 0:00:04]} Rb8 {[%emt 0:00:41]} 33. Ra1 {[%emt 0:00:42]} Ra8 {[%emt 0:00:08]} 34. Rxa8 {[%emt 0:00:25]} Nxa8 {[%emt 0:00:01]} 35. Bc5 {[%emt 0:00:02]} Nc7 {[%emt 0:00:14]} 36. Bf8 {[%emt 0:00:05]} Kf7 {[%emt 0:00:04]} 37. Bd6 {[%emt 0:00:10]} Ne6 {[%emt 0:00:20]} 38. g3 {[%emt 0:00:21]} Ke8 {[%emt 0:00:01]} 39. Kd5 {[%emt 0:00:04]} Kd7 {[%emt 0:00:01]} 40. Bb4 {[%emt 0:00:09]} h5 {[%emt 0:00:10]} 41. Bd6 {[%emt 0:00:08]} Ng5 {[%emt 0:00:17]} 42. Kc5 {[%emt 0:00:12]} Ne4+ {[%emt 0:00:01]} 43. Kxb5 {[%emt 0:00:12]} Nxc3+ {[%emt 0:00:02]} 44. Kxc4 {[%emt 0:00:01]} Ne4 {[%emt 0:00:02]} 45. Kd5 {[%emt 0:00:12]} Ng5 {[%emt 0:00:09]} 46. Bf8 {[%emt 0:00:18]} Ne6 {[%emt 0:00:02]} 47. Ba3 {[%emt 0:00:08]} Ng5 {[%emt 0:00:08]} 48. Bc1 {[%emt 0:00:10]} Ne6 {[%emt 0:00:01]} 49. Bd2 {[%emt 0:00:02]} g5 {[%emt 0:00:08]} 50. Be3 {[%emt 0:00:12]} g4 {[%emt 0:00:07]} 51. Ke4 {[%emt 0:00:07]} Ke7 {[%emt 0:00:34]} 52. Kf5 {[%emt 0:00:06]} Kf7 {[%emt 0:00:04]} 53. Bb6 {[%emt 0:00:28]} Ng7+ {[%emt 0:01:36]} 54. Kg5 {[%emt 0:00:02]} Ke6 {[%emt 0:00:23]} 55. Bd4 {[%emt 0:00:23]} Nf5 {[%emt 0:00:01]} 56. Bb2 {[%emt 0:00:13]} Ng7 {[%emt 0:00:10]} 57. Kh6 Kf7 {[%emt 0:00:23]} 58. Bc3 {[%emt 0:00:15]} Nf5+ {[%emt 0:00:21]} 59. Kxh5 {[%emt 0:00:06]} Ne3 {[%emt 0:00:06]} 60. Bd4 {[%emt 0:00:29]} Nf5 {[%emt 0:00:12]} 61. Bf2 {[%emt 0:00:18]} Ke6 {[%emt 0:00:01]} 62. Kxg4 {[%emt 0:00:03]} Kxe5 {[%emt 0:00:02]} 63. h4 {[%emt 0:00:05]} Kf6 {[%emt 0:00:06]} 64. Kf4 {[%emt 0:00:08]} Ne7 {[%emt 0:00:10]} 65. Bd4+ {[%emt 0:00:04]} Kg6 {[%emt 0:00:04]} 66. g4 {[%emt 0:00:13]} Nd5+ {[%emt 0:00:01]} 67. Ke4 {[%emt 0:00:05]} Ne7 {[%emt 0:00:03]} 68. h5+ {[%emt 0:00:06]} Kg5 {[%emt 0:00:09]} 69. Kf3 {[%emt 0:00:19]} Nd5 {[%emt 0:00:00]} 70. Be3+ {[%emt 0:00:05]} Kf6 {[%emt 0:00:16]} 71. g5+ {[%emt 0:00:06]} Kf5 {[%emt 0:00:08]} 72. h6 {[%emt 0:00:05]} Kg6 {[%emt 0:00:03]} 73. Ke4 {[%emt 0:00:10]} Ne7 {[%emt 0:00:02]} 74. Ke5 {[%emt 0:00:06]} Nc6+ {[%emt 0:00:48]} 75. Kf4 {[%emt 0:00:10]} Ne7 {[%emt 0:00:02]} 76. Bd4 {[%emt 0:00:09]} Nc6 {[%emt 0:00:08]} 77. Bf6 {[%emt 0:00:07]} Nb4 {[%emt 0:00:27]} 78. Ke5 {[%emt 0:00:18]} Nd3+ {[%emt 0:00:17]} 79. Kd6 {[%emt 0:00:04]} Nf4 {[%emt 0:00:14]} 80. Ke7 {[%emt 0:00:06]} Kh7 {[%emt 0:00:22]} 81. Kf7 {[%emt 0:00:09]} Ng6 {[%emt 0:00:25]} 82. Bg7 {[%emt 0:00:13]} Nf4 {[%emt 0:00:03]} 83. Kf6 {[%emt 0:00:03]} Ng6 {[%emt 0:00:02]} 84. Kf5 {[%emt 0:00:13]} Ne7+ {[%emt 0:00:01]} 85. Ke6 {[%emt 0:00:12]} Ng6 {[%emt 0:00:01]} 86. Be5 {[%emt 0:00:15]} Nf8+ {[%emt 0:00:03]} 87. Kf7 {[%emt 0:00:10]} Ng6 {[%emt 0:00:02]} 88. Bg3 {[%emt 0:00:08]} Nh8+ {[%emt 0:00:03]} 89. Kf6 {[%emt 0:00:10]} Ng6 {[%emt 0:00:01]} 90. Bd6 {[%emt 0:00:09]} Nh4 {[%emt 0:00:05]} 91. Kf7 {[%emt 0:00:03]} Ng6 {[%emt 0:00:03]} 92. Bg3 {[%emt 0:00:02]} Nh8+ {[%emt 0:00:02]} 93. Kf6 {[%emt 0:00:25]} Ng6 {[%emt 0:00:07]} 1/2-1/2